[Event "Amsterdam Chess Open 2024"]
[Site "Amsterdam"]
[Date "2024.11.01"]
[Round "2.1"]
[White "Van den Doel, Erik"]
[Black "Wunnink, Michael"]
[Result "1/2-1/2"]
[ECO "B30"]
[WhiteElo "2557"]
[BlackElo "2162"]
[Annotator "TA"]
[PlyCount "109"]
[EventDate "2024.10.31"]
[EventType "swiss"]
[EventCountry "NED"]
[SourceTitle "playchess.com"]
[Source "ChessBase"]
[SourceQuality "1"]
[TimeControl "5400+30"]

{[%evp 10,109,29,0,6,-9,-12,-16,-18,-9,-6,-25,-20,-16,-12,-22,0,0,8,-33,-27,-47,-33,-38,-48,-64,-34,-41,-33,-21,0,0,0,0,0,0,34,0,0,0,10,3,53,51,99,13,39,47,131,56,49,41,54,56,52,50,55,49,55,49,53,43,52,41,56,52,51,21,21,0,0,0,0,0,0,0,0,0,0,-48,0,0,0,0,26,0,94,-189,-179,-167,0,-8,-7,-1,-1,-8,0,0,0,0,0,0]} 1. e4 {[%emt 0:00:07]} c5 {[%emt 0:00:12]} 2. Nf3 {[%emt 0:00:05]} Nc6 {[%emt 0:00:12]} 3. Bb5 {[%emt 0:01:45]} Nf6 {[%emt 0:00:49]} 4. Qe2 {[%emt 0:04:40]} e5 {[%emt 0:04:46]} 5. O-O {[%emt 0:06:27]} Be7 {[%emt 0:01:00]} 6. d3 {[%emt 0:01:54] B30: Sicilian: 2...Nc6 3 Bb5, lines without ...g6.} d6 {[%emt 0:01:05]} 7. c3 $146 {[%emt 0:02:11]} ({Predecessor:} 7. Nbd2 O-O 8. c3 Bd7 9. Rd1 Re8 10. Nf1 Bf8 11. Bg5 h6 12. Bh4 a6 13. Ba4 b5 {0-1 Frilli,G (2142)-Lanzani,M (2352) Aosta op 12th 2004 (4)}) 7... O-O {[%emt 0:00:48]} 8. h3 {[%emt 0:01:56]} h6 {[%emt 0:05:56]} 9. Rd1 {[%emt 0:04:29]} Re8 {[%emt 0:06:07]} 10. Nbd2 {[%emt 0:04:36]} Bf8 {[%emt 0:05:15]} 11. Ba4 {[%emt 0:10:37]} Bd7 {[%emt 0:03:02]} 12. Bb3 {[%emt 0:01:11]} Be6 {[%emt 0:01:22]} 13. Bxe6 {[%emt 0:12:05]} Rxe6 {[%emt 0:00:43]} 14. Nc4 {[%emt 0:00:15]} d5 {[%emt 0:03:00]} 15. exd5 {[%emt 0:00:06]} Qxd5 {[%emt 0:12:43]} 16. a4 {[%emt 0:18:27]} Rd8 {[%emt 0:04:56]} 17. Be3 {[%emt 0:02:26]} Qd7 {[%emt 0:08:45]} 18. Qc2 {[%emt 0:02:07]} Nd5 {[%emt 0:01:23]} 19. a5 {[%emt 0:02:23]} Nxe3 {[%emt 0:02:44]} 20. fxe3 {[%emt 0:03:31]} Qc7 {[%emt 0:09:46]} 21. e4 {[%emt 0:00:30]} Ne7 {[%emt 0:00:26]} 22. Ne3 {[%emt 0:03:23]} Kh8 {[%emt 0:03:45]} 23. c4 {[%emt 0:01:10]} Nc6 {[%emt 0:03:17]} 24. Nd5 {[%emt 0:00:10]} Qc8 {[%emt 0:00:56]} 25. Rf1 {[%emt 0:00:16]} g6 {[%emt 0:02:03]} (25... Be7 $11) 26. Qf2 $14 {[%emt 0:05:13]} Nb4 {[%emt 0:03:46] [#]} (26... Rd7 $14) 27. Nd2 {[%emt 0:02:58]} (27. Qh4 $1 $16 {Threatens to win with Ng5.} Kg8 28. Nh2) 27... Nxd3 {[%emt 0:02:46]} 28. Qxf7 {[%emt 0:02:28]} Bg7 {[%emt 0:02:13]} (28... Nf4 $1 $14) 29. Qf3 {[%emt 0:02:15]} (29. a6 $16 bxa6 30. Ne7 (30. Qxa7 $2 {loses.} Rd7 $19) 30... Rxe7 31. Qxe7) 29... Nf4 $14 {[%emt 0:00:41]} 30. Kh2 {[%emt 0:00:05]} Rf8 {[%emt 0:01:07]} 31. Qe3 {[%emt 0:00:31]} Ree8 {[%emt 0:01:42]} 32. Rf2 {[%emt 0:02:11]} Rf7 {[%emt 0:01:10]} 33. Nb3 {[%emt 0:02:13]} Bf8 $1 {[%emt 0:03:57]} 34. Raf1 {[%emt 0:00:20]} (34. Rd1 $5) 34... Bd6 {[%emt 0:00:24]} 35. Nc1 {[%emt 0:00:56]} Ref8 {[%emt 0:00:16]} 36. Ne2 {[%emt 0:00:22]} Kh7 {[%emt 0:01:58]} 37. Ng1 {[%emt 0:00:08]} Qe8 {[%emt 0:01:27]} 38. g3 {[%emt 0:01:32]} Nxd5 {[%emt 0:00:49]} 39. cxd5 {[%emt 0:00:12]} Rxf2+ {[%emt 0:00:42]} 40. Rxf2 {[%emt 0:00:03]} Rxf2+ {[%emt 0:00:05]} 41. Qxf2 {[%emt 0:00:04]} Kg7 {[%emt 0:00:13]} 42. a6 {[%emt 0:00:06]} bxa6 {[%emt 0:00:12]} 43. Qc2 {[%emt 0:00:16]} Qb5 {[%emt 0:00:14]} 44. Nf3 {[%emt 0:00:25]} (44. h4 $11) 44... c4 {[%emt 0:00:30]} (44... Qf1 $15 45. Qg2 Qd3) 45. h4 $11 {[%emt 0:00:39]} Qc5 {[%emt 0:00:28]} 46. h5 {[%emt 0:00:27]} g5 {[%emt 0:00:29]} ({Don't play} 46... gxh5 47. Nh4 $14) 47. Kg2 {[%emt 0:00:27]} Qe3 {[%emt 0:00:20] [#]} (47... Qb5 $11 {remains equal.}) 48. Qf2 $2 {[%emt 0:02:50][%mdl 8192]} ({Reject} 48. Qxc4 $6 g4 49. Nh4 Qd2+ 50. Kg1 Qe1+ 51. Kg2 Qd2+ 52. Kf1 Qd1+ 53. Kf2 Qd2+ 54. Kg1 Qe1+ 55. Kg2 Qd2+ $11) (48. Nh2 $1 $16 {stays on course.}) 48... Qxe4 $19 {[%emt 0:00:44]} 49. Qxa7+ {[%emt 0:00:04]} Kg8 $2 {[%emt 0:01:02]} (49... Kf6 $19 {aiming for ...g4.} 50. Qd7 Qxd5) 50. Qd7 {[%emt 0:00:52]} Qe2+ {[%emt 0:00:49]} 51. Kh3 {[%emt 0:00:05]} Qxf3 {[%emt 0:00:08]} 52. Qxd6 {[%emt 0:00:50]} Qh1+ {[%emt 0:00:40]} 53. Kg4 {[%emt 0:00:03]} Qe4+ {[%emt 0:00:20]} 54. Kh3 {[%emt 0:00:03]} Qh1+ {[%emt 0:00:05]} 55. Kg4 {[%emt 0:00:03]} 1/2-1/2

[Event "Amsterdam Chess Open 2024"]
[Site "Amsterdam"]
[Date "2024.11.01"]
[Round "2.2"]
[White "Krstic, Andrija Marko"]
[Black "Sharan, Rao"]
[Result "0-1"]
[ECO "D38"]
[WhiteElo "2152"]
[BlackElo "2401"]
[Annotator "RC"]
[PlyCount "110"]
[EventDate "2024.10.31"]
[EventType "swiss"]
[EventCountry "NED"]
[SourceTitle "playchess.com"]
[Source "ChessBase"]
[SourceQuality "1"]
[TimeControl "5400+30"]

1. d4 {[%emt 0:01:32]} Nf6 {[%emt 0:01:10]} 2. c4 {[%emt 0:00:06]} e6 {[%emt 0:00:03]} 3. Nf3 {[%emt 0:00:04]} d5 {[%emt 0:00:03]} 4. Nc3 {[%emt 0:00:06]} Bb4 {[%emt 0:00:39]} 5. Qb3 {[%emt 0:04:23]} c5 {[%emt 0:00:58]} 6. dxc5 {[%emt 0:00:08]} Na6 {[%emt 0:01:28]} 7. e3 {[%emt 0:04:31]} Bxc3+ {[%emt 0:07:07]} 8. Qxc3 {[%emt 0:00:35]} Nxc5 {[%emt 0:00:46]} 9. cxd5 {[%emt 0:03:03]} Qxd5 {[%emt 0:00:28]} 10. Bc4 {[%emt 0:01:00]} Qd6 {[%emt 0:04:51]} 11. O-O {[%emt 0:01:22]} O-O {[%emt 0:00:15]} 12. b3 {[%emt 0:00:23]} b6 {[%emt 0:03:02]} 13. Bb2 {[%emt 0:01:10]} Bb7 {[%emt 0:00:26]} 14. Rfd1 {[%emt 0:00:57]} Qe7 {[%emt 0:00:06]} 15. Ne5 {[%emt 0:14:02]} Rac8 {[%emt 0:01:48]} 16. Ng4 {[%emt 0:05:57]} Nce4 {[%emt 0:00:45]} 17. Qe5 {[%emt 0:04:56]} Rc5 {[%emt 0:13:49]} 18. Nxf6+ {[%emt 0:01:31]} gxf6 {[%emt 0:01:01]} 19. Qd4 {[%emt 0:00:06]} Rg5 {[%emt 0:04:22]} 20. f3 {[%emt 0:10:33]} e5 {[%emt 0:01:06]} 21. Qd3 {[%emt 0:00:13]} Nc5 {[%emt 0:01:30]} 22. Qe2 {[%emt 0:00:18]} Kh8 {[%emt 0:02:10]} 23. g3 {[%emt 0:14:25]} Rfg8 {[%emt 0:02:59]} 24. Bd5 {[%emt 0:05:09]} Bxd5 {[%emt 0:02:35]} 25. Rxd5 {[%emt 0:00:10]} Qe6 {[%emt 0:00:17]} 26. Qd1 {[%emt 0:16:08]} Qh3 {[%emt 0:15:44]} 27. Rd8 {[%emt 0:00:32]} Rxg3+ {[%emt 0:02:09]} 28. hxg3 {[%emt 0:00:06]} Qxg3+ {[%emt 0:00:04]} 29. Kf1 {[%emt 0:00:08]} Qg2+ {[%emt 0:00:03]} 30. Ke1 {[%emt 0:00:12]} Qxb2 {[%emt 0:00:29]} 31. Rxg8+ {[%emt 0:00:45]} Kxg8 {[%emt 0:00:05]} 32. Qd8+ {[%emt 0:05:26]} Kg7 {[%emt 0:00:10]} 33. Rd1 {[%emt 0:00:00]} Qxa2 {[%emt 0:09:07]} 34. b4 {[%emt 0:00:41]} Ne6 {[%emt 0:00:53]} 35. Qd2 {[%emt 0:00:36]} Qc4 {[%emt 0:00:58]} 36. Qg2+ {[%emt 0:01:29]} Ng5 {[%emt 0:05:55]} 37. Qg4 {[%emt 0:01:11]} Qc6 {[%emt 0:09:36]} 38. Kf2 {[%emt 0:02:30]} Qc2+ {[%emt 0:01:12]} 39. Ke1 {[%emt 0:00:01]} Qh2 {[%emt 0:04:55]} 40. Kf1 {[%emt 0:01:23]} h5 {[%emt 0:00:43]} 41. Qg2 {[%emt 0:00:22]} Qh4 {[%emt 0:00:02]} 42. b5 {[%emt 0:00:59]} Qa4 {[%emt 0:00:33]} 43. Qe2 {[%emt 0:00:38]} e4 {[%emt 0:03:03]} 44. f4 {[%emt 0:00:07]} Nf3 {[%emt 0:00:13]} 45. Kf2 {[%emt 0:01:19]} h4 {[%emt 0:01:14]} 46. Rg1+ {[%emt 0:01:31]} Kf8 {[%emt 0:01:09]} 47. Rc1 {[%emt 0:00:06]} Qb4 {[%emt 0:01:18]} 48. Rc4 {[%emt 0:00:44]} Qb1 {[%emt 0:00:23]} 49. Rc8+ {[%emt 0:00:25]} Kg7 {[%emt 0:00:25]} 50. Qf1 {[%emt 0:00:11]} Qa2+ {[%emt 0:00:12]} 51. Qe2 {[%emt 0:00:08]} Qe6 {[%emt 0:00:32]} 52. Rc6 {[%emt 0:01:25]} Qg4 {[%emt 0:00:38]} 53. Qf1 {[%emt 0:00:27]} Qg3+ {[%emt 0:00:21]} 54. Ke2 {[%emt 0:00:02]} Ng1+ {[%emt 0:01:00]} 55. Kd2 {[%emt 0:01:03]} h3 {[%emt 0:00:11]} 0-1

[Event "Amsterdam Chess Open 2024"]
[Site "Amsterdam"]
[Date "2024.11.01"]
[Round "2.3"]
[White "Van Doren, Bas"]
[Black "Bagrationi, Alexander"]
[Result "1-0"]
[ECO "E04"]
[WhiteElo "2147"]
[BlackElo "2391"]
[Annotator "TA"]
[PlyCount "67"]
[EventDate "2024.10.31"]
[EventType "swiss"]
[EventCountry "NED"]
[SourceTitle "playchess.com"]
[Source "ChessBase"]
[SourceQuality "1"]
[TimeControl "5400+30"]

{[%evp 20,67,20,10,44,11,37,39,79,41,173,173,151,154,229,208,212,138,208,206,208,190,202,188,214,200,365,377,405,387,425,433,417,419,539,493,734,725,720,718,764,837,816,818,1110,1094,1009,912,1155,1133]} 1. Nf3 {[%emt 0:00:06]} d5 {[%emt 0:00:39]} 2. g3 {[%emt 0:00:26]} c5 {[%emt 0:01:37]} 3. Bg2 {[%emt 0:00:43]} Nc6 {[%emt 0:00:15]} 4. d4 {[%emt 0:00:47]} Nf6 {[%emt 0:02:16]} 5. O-O {[%emt 0:01:12]} e6 {[%emt 0:01:05]} 6. c4 {[%emt 0:05:22]} dxc4 {[%emt 0:00:28]} 7. dxc5 {[%emt 0:00:30]} Qxd1 {[%emt 0:02:16]} 8. Rxd1 {[%emt 0:00:07]} Bxc5 {[%emt 0:00:03]} 9. Nbd2 {[%emt 0:06:03]} c3 {[%emt 0:00:29]} 10. bxc3 {[%emt 0:00:27]} O-O {[%emt 0:01:29]} 11. Nb3 {[%emt 0:01:45]} Bb6 {[%emt 0:02:04]} 12. c4 {[%emt 0:09:13]} Ne4 {[%emt 0:07:45]} 13. e3 {[%emt 0:01:52]} Nc3 {[%emt 0:05:01] White is slightly better.} 14. Rd2 {[%emt 0:01:26]} e5 {[%emt 0:05:28]} (14... Ne4 $14) 15. Rc2 $18 {[%emt 0:07:45]} Ne4 {[%emt 0:26:18]} 16. Nxe5 {[%emt 0:03:22]} Bf5 {[%emt 0:01:08]} (16... Nxe5 $16 {was necessary.} 17. Bxe4 Bc7) 17. g4 {[%emt 0:12:07]} Nb4 {[%emt 0:04:56]} 18. Re2 {[%emt 0:09:28]} (18. gxf5 Nxc2 19. Rb1 (19. Bxe4 Nxa1 20. Nxa1 Rfe8 $15) 19... Nc3 $11) 18... Nc3 {[%emt 0:01:17]} (18... Rfe8 $16) 19. Rd2 {[%emt 0:00:56]} Bc7 {[%emt 0:07:29][%cal Bb6c7,Bc7e5,Be5f6][%mdl 32]} 20. gxf5 {[%emt 0:02:59]} Bxe5 {[%emt 0:00:11]} 21. Bb2 {[%emt 0:01:42] Black must now prevent a3.} (21. Bxb7 Rab8) 21... Rad8 {[%emt 0:00:48] [#]} 22. Nd4 $1 {[%emt 0:03:05]} (22. Bxb7 Rxd2 23. Nxd2 Rb8 (23... Nbxa2 $2 {is the wrong capture.} 24. Rxa2 Bxh2+ 25. Kxh2 $18) (23... Ne2+ $2 24. Kf1 $18)) 22... Ncxa2 {[%emt 0:06:33]} (22... Na4 23. Rb1 (23. Bxb7 Nxb2 24. Rxb2 Rxd4 $16) 23... Nb6) 23. Bxb7 {[%emt 0:05:00][%cal Bg2b7,Bb7c6,Bc6f3,Bf3g4][%mdl 32] This pair of bishops is nice.} a5 {[%emt 0:00:18]} 24. f4 {[%emt 0:01:23]} Bf6 {[%emt 0:00:33] Black is weak on the light squares} 25. c5 {[%emt 0:05:01]} Rfe8 {[%emt 0:02:58][%cal Bf8e8,Be8e7,Be7e5,Be5f5][%mdl 32]} 26. c6 {[%emt 0:01:02] [#] c7 would now be deadly.} Re7 {[%emt 0:03:23]} 27. e4 {[%emt 0:02:19] White is clearly winning.} Nxc6 {[%emt 0:02:05]} (27... Rc7 $142 28. Rad1 Bxd4+ 29. Bxd4 Nxc6) 28. Bxc6 {[%emt 0:04:40]} Nb4 {[%emt 0:00:15]} 29. e5 {[%emt 0:01:18]} Bxe5 {[%emt 0:11:57]} 30. fxe5 {[%emt 0:00:27]} Rxe5 {[%emt 0:00:02]} 31. Bf3 {[%emt 0:01:47]} f6 {[%emt 0:01:08]} 32. Rg2 {[%emt 0:01:40] Strongly threatening Ne6.} Rd7 {[%emt 0:01:05]} 33. Nc6 {[%emt 0:01:54]} Rxf5 {[%emt 0:00:41]} 34. Bg4 {[%emt 0:00:31] Black did not feel at home in the position after the opening.   Weighted Error Value: White=0.14 (very precise) /Black=0.53.  Mistake:       	---       	Black=5      Inaccurate:     	White=3     	Black=2      OK:         	White=7     	Black=4      Best:        	White=2     	---        Strong:       	White=1     	---} 1-0

[Event "Amsterdam Chess Open 2024"]
[Site "Amsterdam"]
[Date "2024.11.01"]
[Round "2.4"]
[White "Grutter, Tim"]
[Black "Gijsen, William"]
[Result "1-0"]
[ECO "B47"]
[WhiteElo "2350"]
[BlackElo "2158"]
[Annotator "RC"]
[PlyCount "127"]
[EventDate "2024.10.31"]
[EventType "swiss"]
[EventCountry "NED"]
[SourceTitle "playchess.com"]
[Source "ChessBase"]
[SourceQuality "1"]
[TimeControl "5400+30"]

1. e4 {[%emt 0:00:04]} c5 {[%emt 0:00:05]} 2. Nf3 {[%emt 0:00:05]} e6 {[%emt 0:00:04]} 3. Nc3 {[%emt 0:00:05]} Nc6 {[%emt 0:00:41]} 4. d4 {[%emt 0:00:06]} cxd4 {[%emt 0:00:05]} 5. Nxd4 {[%emt 0:00:04]} Qc7 {[%emt 0:00:11]} 6. Be2 {[%emt 0:00:05]} a6 {[%emt 0:00:36]} 7. Nxc6 {[%emt 0:02:00]} bxc6 {[%emt 0:00:15]} 8. Qd3 {[%emt 0:00:07]} d5 {[%emt 0:01:37]} 9. Qg3 {[%emt 0:00:22]} Qxg3 {[%emt 0:00:30]} 10. hxg3 {[%emt 0:00:07]} Nf6 {[%emt 0:00:24]} 11. g4 {[%emt 0:00:24]} Nxe4 {[%emt 0:04:06]} 12. Nxe4 {[%emt 0:00:59]} dxe4 {[%emt 0:00:08]} 13. Be3 {[%emt 0:01:31]} Be7 {[%emt 0:02:50]} 14. g5 {[%emt 0:05:28]} O-O {[%emt 0:01:31]} 15. O-O-O {[%emt 0:03:22]} e5 {[%emt 0:03:26]} 16. g4 {[%emt 0:05:43]} Rd8 {[%emt 0:01:20]} 17. Rdg1 {[%emt 0:07:19]} Be6 {[%emt 0:06:02]} 18. Rh2 {[%emt 0:05:09]} Bxa2 {[%emt 0:02:26]} 19. Rgh1 {[%emt 0:04:07]} h6 {[%emt 0:00:13]} 20. gxh6 {[%emt 0:03:18]} g6 {[%emt 0:00:14]} 21. Rd1 {[%emt 0:06:14]} Rxd1+ {[%emt 0:01:33]} 22. Kxd1 {[%emt 0:03:38]} Be6 {[%emt 0:00:33]} 23. g5 {[%emt 0:07:09]} a5 {[%emt 0:03:46]} 24. Rh4 {[%emt 0:02:08]} Bf5 {[%emt 0:05:10]} 25. Bc4 {[%emt 0:01:16]} Rf8 {[%emt 0:00:42]} 26. Kd2 {[%emt 0:06:44]} Kh7 {[%emt 0:00:08]} 27. Rh1 {[%emt 0:01:19]} f6 {[%emt 0:01:33]} 28. gxf6 {[%emt 0:01:09]} Bxf6 {[%emt 0:00:08]} 29. Ra1 {[%emt 0:01:10]} Ra8 {[%emt 0:02:49]} 30. Ra4 {[%emt 0:04:11]} Bd8 {[%emt 0:01:09]} 31. Bf1 {[%emt 0:06:47]} Rb8 {[%emt 0:02:48]} 32. Kc1 {[%emt 0:01:47]} g5 {[%emt 0:01:15]} 33. Rc4 {[%emt 0:00:38]} Rc8 {[%emt 0:00:25]} 34. Rc5 {[%emt 0:02:32]} Bb6 {[%emt 0:02:32]} 35. Rxe5 {[%emt 0:00:09]} Bxe3+ {[%emt 0:00:14]} 36. fxe3 {[%emt 0:00:03]} Kg6 {[%emt 0:00:36]} 37. Rxa5 {[%emt 0:04:17]} Bg4 {[%emt 0:00:36]} 38. Kd2 {[%emt 0:02:38]} Bf3 {[%emt 0:04:31]} 39. Ke1 {[%emt 0:00:41]} Kxh6 {[%emt 0:00:19]} 40. Kf2 {[%emt 0:00:50]} Rd8 {[%emt 0:00:21]} 41. Rc5 {[%emt 0:00:37]} Rd6 {[%emt 0:01:10]} 42. Kg3 {[%emt 0:00:47]} Kh5 {[%emt 0:00:39]} 43. Bh3 {[%emt 0:05:27]} Rd1 {[%emt 0:01:21]} 44. Rxc6 {[%emt 0:00:49]} g4 {[%emt 0:00:31]} 45. Bxg4+ {[%emt 0:00:16]} Bxg4 {[%emt 0:00:44]} 46. Rc5+ {[%emt 0:00:05]} Bf5 {[%emt 0:01:47]} 47. Rxf5+ {[%emt 0:00:06]} Kg6 {[%emt 0:00:03]} 48. Rf2 {[%emt 0:01:22]} Kg5 {[%emt 0:00:29]} 49. Re2 {[%emt 0:01:58]} Rb1 {[%emt 0:01:10]} 50. c3 {[%emt 0:00:17]} Rc1 {[%emt 0:00:05]} 51. Rd2 {[%emt 0:00:37]} Rf1 {[%emt 0:00:18]} 52. Kg2 {[%emt 0:00:37]} Rb1 {[%emt 0:00:32]} 53. Rc2 {[%emt 0:00:39]} Re1 {[%emt 0:00:26]} 54. c4 {[%emt 0:02:51]} Rxe3 {[%emt 0:03:02]} 55. c5 {[%emt 0:00:05]} Kf4 {[%emt 0:00:06]} 56. c6 {[%emt 0:00:29]} Rg3+ {[%emt 0:00:12]} 57. Kf1 {[%emt 0:00:57]} Rg8 {[%emt 0:01:31]} 58. c7 {[%emt 0:00:53]} Rc8 {[%emt 0:00:12]} 59. b4 {[%emt 0:04:21]} Kf3 {[%emt 0:00:25]} 60. Rc6 {[%emt 0:00:49]} e3 {[%emt 0:00:21]} 61. b5 {[%emt 0:00:20]} Rh8 {[%emt 0:00:23]} 62. Rf6+ {[%emt 0:00:04]} Ke4 {[%emt 0:00:23]} 63. b6 {[%emt 0:00:28]} Kd3 {[%emt 0:00:38]} 64. Rd6+ {[%emt 0:00:08]} 1-0

[Event "Amsterdam Chess Open 2024"]
[Site "Amsterdam"]
[Date "2024.11.01"]
[Round "2.5"]
[White "Brink, Barry"]
[Black "Hummel, Paul"]
[Result "1/2-1/2"]
[ECO "A34"]
[WhiteElo "2342"]
[BlackElo "2149"]
[Annotator "RC"]
[PlyCount "75"]
[EventDate "2024.10.31"]
[EventType "swiss"]
[EventCountry "NED"]
[SourceTitle "playchess.com"]
[Source "ChessBase"]
[SourceQuality "1"]
[TimeControl "5400+30"]

1. c4 {[%emt 0:00:06]} Nf6 {[%emt 0:00:50]} 2. Nc3 {[%emt 0:00:20]} c5 {[%emt 0:00:27]} 3. g3 {[%emt 0:00:35]} g6 {[%emt 0:00:45]} 4. Bg2 {[%emt 0:00:10]} Bg7 {[%emt 0:00:05]} 5. e3 {[%emt 0:00:14]} O-O {[%emt 0:01:25]} 6. Nge2 {[%emt 0:00:08]} e6 {[%emt 0:01:56]} 7. O-O {[%emt 0:01:04]} d5 {[%emt 0:02:36]} 8. cxd5 {[%emt 0:00:48]} exd5 {[%emt 0:00:47]} 9. d4 {[%emt 0:00:18]} cxd4 {[%emt 0:03:21]} 10. Nxd4 {[%emt 0:01:09]} Nc6 {[%emt 0:02:50]} 11. Nxc6 {[%emt 0:09:36]} bxc6 {[%emt 0:00:06]} 12. Bd2 {[%emt 0:00:14]} Rb8 {[%emt 0:04:02]} 13. b3 {[%emt 0:04:39]} Bg4 {[%emt 0:11:44]} 14. Qc1 {[%emt 0:08:37]} Nd7 {[%emt 0:04:00]} 15. h3 {[%emt 0:04:02]} Be6 {[%emt 0:00:06]} 16. Qa3 {[%emt 0:08:41]} Ne5 {[%emt 0:12:51]} 17. Rad1 {[%emt 0:08:55]} Bxh3 {[%emt 0:03:32]} 18. Bxh3 {[%emt 0:02:06]} Nf3+ {[%emt 0:00:04]} 19. Kg2 {[%emt 0:00:10]} Nxd2 {[%emt 0:00:07]} 20. Rxd2 {[%emt 0:00:15]} Bxc3 {[%emt 0:00:03]} 21. Rc2 {[%emt 0:01:43]} d4 {[%emt 0:05:03]} 22. Qxa7 {[%emt 0:04:40]} Qd5+ {[%emt 0:06:12]} 23. Kg1 {[%emt 0:00:13]} Qe5 {[%emt 0:04:42]} 24. exd4 {[%emt 0:09:21]} Bxd4 {[%emt 0:00:18]} 25. Qa4 {[%emt 0:00:10]} Qxg3+ {[%emt 0:04:49]} 26. Bg2 {[%emt 0:00:07]} Qf4 {[%emt 0:02:26]} 27. Qxc6 {[%emt 0:02:32]} Rfd8 {[%emt 0:09:20]} 28. Re1 {[%emt 0:03:33]} Rb6 {[%emt 0:05:36]} 29. Re8+ {[%emt 0:02:14]} Rxe8 {[%emt 0:05:10]} 30. Qxe8+ {[%emt 0:00:12]} Kg7 {[%emt 0:00:03]} 31. Qe4 {[%emt 0:00:43]} Qf6 {[%emt 0:00:28]} 32. Rd2 {[%emt 0:04:51]} Bc3 {[%emt 0:00:12]} 33. Rd1 {[%emt 0:02:33]} Re6 {[%emt 0:01:04]} 34. Qf3 {[%emt 0:00:06]} Qe5 {[%emt 0:00:56]} 35. Qd5 {[%emt 0:01:47]} Qf6 {[%emt 0:02:25]} 36. Qf3 {[%emt 0:00:16]} Qe5 {[%emt 0:00:17]} 37. Qd5 {[%emt 0:00:06]} Qf6 {[%emt 0:01:11]} 38. Qf3 {[%emt 0:00:41]} 1/2-1/2